bitfinex-derivatives/quotes_ETHF0:USTF0_20251007
["timestamp","ask_amount","ask_price","bid_price","bid_amount"]
[1759850810960,0.39495,4554.4,4553.3,1.6353]
[1759850811160,0.98723,4555.0,4553.3,1.6353]
[1759850811362,0.39498,4554.0,4553.3,1.6353]
[1759850811663,0.39492,4554.7,4554.0,0.6562]
[1759850811862,0.6189,4554.9,4554.1,1.6353]
[1759850812061,2.86056816,4555.4,4554.1,1.6353]
[1759850812266,2.86056816,4554.8,4554.5,0.6562]
[1759850812467,0.39489,4555.1,4554.5,0.6562]
[1759850812667,0.39481,4556.0,4554.6,1.6353]
[1759850812867,0.076,4556.0,4554.6,1.6353]
[1759850813063,0.224,4555.9,4554.6,1.6353]
[1759850813266,0.39482,4555.8,4555.5,0.6562]
[1759850813457,0.9868,4557.0,4555.5,2.2915]
[1759850813662,0.98685,4556.8,4555.5,0.6562]
[1759850813857,0.39484,4555.7,4555.5,0.6562]
[1759850814065,0.98694,4556.4,4555.4,1.6353]
[1759850814066,0.39485,4555.5,4555.4,1.6353]
[1759850815368,0.98679,4557.1,4555.5,2.2915]
[1759850815563,0.98685,4556.8,4555.5,2.2915]
[1759850815769,0.39483,4555.8,4555.5,2.2915]
[1759850815971,0.39483,4555.8,4555.5,0.6562]
[1759850816164,0.39483,4555.8,4555.6,1.6353]
[1759850816365,0.6188,4556.0,4555.6,1.6353]
[1759850816569,0.224,4555.9,4555.6,1.6353]
[1759850816870,0.39475,4556.6,4556.5,0.6562]
[1759850817167,0.00244804,4557.0,4556.6,1.6353]
[1759850817360,0.39716804,4557.0,4556.6,1.6353]
[1759850817559,0.00244804,4557.0,4556.6,1.6353]
[1759850818864,0.00244804,4557.0,4556.6,2.03005]
[1759850819063,0.00244804,4557.0,4556.6,1.6353]
[1759850819666,0.98632,4559.2,4557.5,0.6562]
[1759850819867,0.3946,4558.3,4557.6,1.6353]
[1759850820070,2.40256583,4558.6,4558.0,2.2915]
[1759850820267,0.39455,4559.0,4558.1,1.6353]
[1759850820571,0.058,4559.6,4559.0,0.6562]
[1759850820870,0.98641,4558.8,4557.6,1.6353]
[1759850821170,0.39469,4557.4,4557.1,1.6353]
[1759850821368,0.39469,4557.4,4557.0,0.6562]
[1759850821668,0.98592,4561.1,4556.5,0.9684096]
[1759850821868,0.39462,4558.2,4556.6,1.6353]
[1759850822175,0.39463,4558.1,4556.6,1.6353]
[1759850822475,0.39474,4556.8,4556.6,1.6353]
[1759850823170,0.224,4557.0,4556.5,0.3122096]
[1759850823171,0.39475,4556.6,4556.5,0.3122096]
[1759850823872,0.224,4557.0,4556.6,1.6826]
[1759850823873,0.39474,4556.7,4556.6,1.6826]
[1759850824277,0.39474,4556.7,4556.5,0.0020224]
[1759850824772,0.39474,4556.7,4556.5,1.6846224]
[1759850825070,0.224,4556.6,4556.5,0.0020224]
[1759850825471,3.10213002,4556.6,4556.5,0.0020224]
[1759850825672,9.08902002,4556.6,4555.5,0.6562]
[1759850825971,0.39483,4555.7,4555.6,1.6826]
[1759850826370,1.97282,4558.8,4555.6,1.6826]
[1759850826570,0.39473,4556.9,4556.1,1.6826]
[1759850826772,0.058,4556.8,4556.1,1.68445028]
[1759850827073,0.39478,4556.3,4556.1,1.68445028]
[1759850827270,0.39474,4556.7,4556.1,0.00185028]
[1759850827471,0.39475,4556.6,4556.2,1.6826]
[1759850827670,9.86077,4560.4,4557.1,1.6826]
[1759850827865,9.86139,4560.1,4557.1,1.6826]
[1759850828071,9.86504,4558.4,4556.5,2.3266]
[1759850828271,0.39476,4556.6,4556.1,0.00185028]
[1759850828576,0.39475,4556.6,4556.1,0.00185028]
[1759850828773,0.39478,4556.3,4556.2,1.6826]
[1759850828975,0.39476,4556.5,4556.2,1.6826]
[1759850829274,0.39478,4556.3,4556.2,1.6826]
[1759850829465,0.00184755,4556.6,4556.2,1.6826]
[1759850829671,0.39478,4556.3,4556.2,1.6826]
[1759850830271,0.39478,4556.3,4556.1,0.00185028]
[1759850831072,0.224,4556.3,4556.2,1.6826]
[1759850831378,0.39478,4556.2,4556.1,1.68445028]
[1759850831775,0.39478,4556.2,4556.1,0.00185028]
[1759850832377,0.39478,4556.2,4556.1,1.68445028]
[1759850832980,0.39478,4556.2,4556.1,0.00185028]
[1759850833179,0.39487,4555.2,4555.0,0.644]
[1759850833379,0.39486,4555.4,4555.0,0.644]
[1759850833678,0.39488,4555.2,4555.0,0.95220575]
[1759850833873,0.39488,4555.2,4555.1,1.6826]
[1759850834086,0.39487,4555.3,4555.0,0.95220575]
[1759850834279,0.39487,4555.3,4555.1,1.6826]
[1759850834481,0.39485,4555.5,4555.1,1.6826]
[1759850834976,0.00184755,4556.6,4555.6,1.6826]
[1759850835177,0.00184755,4556.6,4556.0,0.644]
[1759850835378,0.00184755,4556.6,4556.5,2.3266]
[1759850835782,34.242,4559.2,4556.6,1.6826]
[1759850835974,0.39462,4558.1,4558.0,2.3266]
[1759850836478,0.39461,4558.3,4558.1,1.6826]
[1759850836682,0.00254197,4558.3,4557.5,2.3266]
[1759850836878,0.39465,4557.9,4557.5,2.3266]
[1759850837085,0.62115197,4558.3,4557.6,1.6826]
[1759850837274,0.39463,4558.0,4557.6,1.6826]
[1759850837473,0.00254197,4558.3,4557.6,1.6826]
[1759850837685,0.39463,4558.1,4558.0,0.644]
[1759850837877,0.39463,4558.1,4558.0,2.3266]
[1759850838680,0.39462,4558.2,4558.0,0.644]
[1759850838880,0.39462,4558.2,4558.1,1.6826]
[1759850839074,0.39466,4557.6,4557.5,2.3266]
[1759850839273,0.224,4557.6,4557.0,2.3266]
[1759850839473,0.39471,4557.1,4557.0,2.3266]
[1759850839680,0.39475,4556.6,4556.5,0.644]
[1759850839880,0.39475,4556.6,4556.5,2.3266]
[1759850840382,0.39479,4556.2,4556.1,1.6826]
[1759850840783,0.39477,4556.4,4556.0,0.644]
[1759850840978,0.9867,4557.5,4556.1,1.6826]
[1759850841179,0.39476,4556.6,4556.5,2.3266]
[1759850842374,0.39479,4556.1,4556.0,2.3266]
[1759850842580,0.39478,4556.3,4556.0,0.644]
[1759850842883,0.39478,4556.3,4556.1,1.6826]
[1759850843282,0.39479,4556.2,4556.1,1.6826]
[1759850843784,0.39478,4556.3,4556.1,1.6826]
[1759850843985,0.39479,4556.1,4556.0,2.3266]
[1759850845282,9.86605,4557.9,4556.0,2.3266]
[1759850845489,0.39479,4556.2,4556.1,1.6826]
[1759850845882,0.39479,4556.2,4556.0,0.644]
[1759850846082,0.39483,4555.7,4555.6,1.6826]
[1759850846786,0.39488,4555.1,4555.0,2.63649065]
[1759850846989,0.39487,4555.3,4555.0,0.95389065]
[1759850847178,0.39486,4555.4,4555.1,1.6826]
[1759850847785,0.00211581,4555.4,4555.1,1.6826]
[1759850848794,0.39487,4555.3,4555.1,1.6826]
[1759850848984,0.39697581,4555.4,4555.1,1.6826]
[1759850849189,0.00211581,4555.4,4555.1,1.6826]
[1759850850093,0.39697581,4555.4,4555.1,1.6826]
[1759850850388,0.00211581,4555.4,4555.1,1.6826]
[1759850850894,0.39479,4556.1,4556.0,2.3266]
[1759850851884,0.00169984,4556.1,4556.0,2.3266]
[1759850852090,0.39648984,4556.1,4556.0,2.3266]
[1759850852687,0.98684,4556.8,4556.1,1.6068]
[1759850852883,0.98673,4557.3,4556.1,2.00159]
[1759850853088,0.75197129,4557.4,4557.1,1.6068]
[1759850853387,0.3947,4557.2,4557.1,1.6068]
[1759850853590,0.39465,4557.8,4557.1,1.6068]
[1759850853787,0.00167693,4557.8,4557.6,1.6068]
[1759850854489,1.97233,4560.0,4557.9,0.39463]
[1759850854690,0.98628,4559.4,4558.1,1.6068]
[1759850854892,0.39457,4558.8,4558.5,0.6781]
[1759850855093,0.39457,4558.7,4558.5,0.6781]
[1759850855287,0.39457,4558.7,4558.6,1.6068]
[1759850855487,0.00246853,4558.7,4558.6,1.60881192]
[1759850856388,1.75018293,4560.9,4558.7,1.6068]
[1759850856592,1.75018293,4560.9,4558.6,5.00201192]
[1759850856593,0.39449,4559.7,4559.6,1.6068]
[1759850857399,0.39449,4559.7,4559.6,2.17079643]
[1759850857589,0.00195399,4559.7,4559.6,0.56399643]
[1759850857894,0.00195399,4559.7,4559.0,0.6781]
[1759850857895,0.39453,4559.1,4559.0,2.2849]
[1759850858195,0.39449,4559.6,4559.1,1.6068]
[1759850858398,0.39449,4559.6,4559.5,2.3306]
[1759850858694,0.98567,4562.3,4559.6,2.10218]
[1759850858886,0.39439,4560.8,4559.6,1.7077]
[1759850859092,0.39443,4560.4,4559.6,1.7077]
[1759850859287,0.98588,4561.3,4560.1,1.7077]
[1759850859490,0.39445,4560.2,4560.1,1.7077]
[1759850859891,0.00162188,4560.2,4560.1,1.7077]
[1759850860090,0.98585,4561.4,4560.2,1.7077]
[1759850860290,0.3944,4560.7,4560.5,0.6229]
[1759850860486,0.3944,4560.7,4560.6,1.68990725]
[1759850861088,0.98585,4561.4,4560.6,1.68990725]
[1759850861291,0.3944,4560.6,4560.5,0.6229]
[1759850861692,0.98589,4561.2,4560.0,0.6229]
[1759850861992,0.223,4561.5,4560.5,0.6229]
[1759850861993,0.3944,4560.6,4560.5,0.6229]
[1759850862196,0.223,4561.5,4560.5,0.6229]
[1759850862399,0.39437,4561.1,4560.5,0.6229]
[1759850862588,0.39437,4561.1,4561.0,2.3306]
[1759850862792,0.39436,4561.2,4561.0,2.3306]
[1759850862998,0.00227477,4561.1,4561.0,2.3306]
[1759850863599,1.97123,4562.5,4561.0,2.3306]
[1759850863600,0.98556,4562.8,4561.1,1.7077]
[1759850863795,0.39431,4561.8,4561.5,0.6229]
[1759850863996,0.39431,4561.8,4561.6,1.7077]
[1759850864393,0.39432,4561.6,4561.5,2.3306]
[1759850864592,0.3971002,4561.6,4561.5,2.3306]
[1759850864793,0.3944,4560.6,4559.5,0.6229]
[1759850864999,0.3944,4560.6,4560.5,2.3306]
[1759850867201,0.39445,4560.1,4560.0,2.3306]
[1759850867599,0.39449,4559.6,4559.5,2.3306]
[1759850867994,0.39449,4559.6,4559.5,0.6229]
[1759850868601,0.39449,4559.6,4559.5,2.3306]
[1759850869401,0.39453,4559.1,4559.0,2.91110213]
[1759850870602,0.98617,4559.9,4559.0,2.91110213]
[1759850870603,0.223,4559.8,4559.5,0.6229]
[1759850871000,0.39448,4559.7,4559.6,1.7077]
[1759850873314,0.98602,4560.6,4559.6,1.7077]
[1759850873514,0.39447,4559.9,4559.6,1.7077]
[1759850873708,0.39447,4559.8,4559.6,1.7077]
[1759850874010,0.98604,4560.5,4559.6,1.7077]
[1759850874407,0.39447,4559.9,4559.6,1.7077]
[1759850874607,0.39447,4559.8,4559.6,1.7077]
[1759850875003,0.39447,4559.8,4559.5,0.6229]
[1759850875004,0.39449,4559.6,4559.5,0.6229]
[1759850875608,0.39449,4559.6,4559.5,2.3306]
[1759850875811,0.39453,4559.1,4559.0,2.91110213]
[1759850876015,0.39453,4559.1,4559.0,0.58050213]
[1759850876213,0.98636,4559.1,4558.6,0.00201192]
[1759850876509,0.39457,4558.7,4558.6,1.70971192]
[1759850876716,0.39457,4558.7,4558.6,2.28765835]
[1759850876910,1.97213,4560.4,4558.7,1.7077]
[1759850877111,0.39454,4559.1,4558.7,1.7077]
[1759850877410,0.39454,4559.1,4559.0,2.3306]
[1759850878114,0.98621,4559.7,4559.1,1.7077]
[1759850878314,0.39453,4559.1,4559.0,0.6229]
[1759850878917,0.39453,4559.1,4559.0,2.3306]
[1759850879218,0.39457,4558.7,4558.6,0.57995835]
[1759850879717,0.39457,4558.7,4558.6,2.28765835]
[1759850880117,0.98625,4559.5,4558.6,0.57995835]
[1759850880314,1.97155,4561.8,4559.0,0.6229]
[1759850880517,0.39449,4559.6,4559.5,0.6229]
[1759850880711,0.39449,4559.6,4559.5,2.3306]
[1759850880907,0.98601,4560.7,4560.0,0.6229]
[1759850881214,0.39443,4560.3,4560.0,0.6229]
[1759850881516,0.39445,4560.1,4560.0,2.3306]
[1759850882513,0.39449,4559.6,4559.5,2.3233]
[1759850883308,0.39449,4559.6,4559.5,1.7004]
[1759850883515,0.39453,4559.1,4559.0,2.3233]
[1759850883714,0.39452,4559.3,4559.0,0.6229]
[1759850883915,0.39453,4559.2,4559.1,1.7004]
[1759850885821,1.20918,4559.9,4559.1,1.7004]
[1759850886018,0.39452,4559.2,4559.1,1.7004]
[1759850886912,0.39452,4559.2,4559.0,0.6229]
[1759850887222,0.39457,4558.7,4558.6,0.57995835]
[1759850887421,0.5513,4558.1,4557.0,0.6797]
[1759850887722,0.3947,4557.2,4557.0,0.57842145]
[1759850887920,0.39473,4556.9,4556.5,0.6797]
[1759850888127,0.223,4557.6,4556.5,0.6797]
[1759850888321,0.98671,4557.4,4556.5,0.68132813]
[1759850888825,0.39475,4556.7,4556.5,0.68132813]
[1759850889223,0.39475,4556.7,4556.5,1.23775183]
[1759850889425,0.94605,4556.7,4556.5,0.55805183]
[1759850889721,0.39475,4556.7,4556.6,1.7004]
[1759850890922,0.5513,4556.6,4556.5,0.55805183]
[1759850891523,0.5513,4556.6,4556.5,0.00162813]
[1759850891524,3.44540365,4556.6,4556.5,0.00162813]
[1759850894230,3.66840365,4556.6,4556.5,0.00162813]
[1759850895426,1.53671,4556.1,4554.8,0.223]
[1759850895728,0.39488,4555.2,4555.1,1.7004]
[1759850896426,0.39488,4555.2,4555.1,1.70232182]
[1759850896932,0.94458,4555.2,4555.1,0.00192182]
[1759850897726,3.82936596,4555.2,4555.1,0.00192182]
[1759850898231,4.05236596,4555.2,4555.1,0.00192182]
[1759850898932,3.82936596,4555.2,4555.1,0.00192182]
[1759850899132,0.39488,4555.2,4555.1,1.70232182]
[1759850899332,0.5497,4555.7,4555.1,1.70232182]
[1759850899526,0.223,4555.6,4555.1,0.00192182]
[1759850899727,2.88117084,4555.5,4555.2,1.7004]
[1759850900029,0.39486,4555.3,4555.2,1.7004]
[1759850900431,0.39483,4555.7,4555.5,0.6797]
[1759850900732,0.39483,4555.7,4555.6,1.7004]
[1759850901337,0.39486,4555.3,4555.2,1.7004]
[1759850902132,2.90465535,4555.9,4555.2,1.7004]
[1759850902328,0.98706,4555.8,4555.1,0.00192182]
[1759850902534,0.39486,4555.3,4555.2,1.7004]
[1759850902834,1.21002,4556.0,4555.2,1.7004]
[1759850903033,0.39487,4555.2,4555.1,1.70232182]
[1759850903429,0.39486,4555.3,4555.1,1.70232182]
[1759850903630,0.39484,4555.6,4555.5,0.6797]
[1759850903834,0.39484,4555.6,4555.5,2.3801]
[1759850904032,0.39484,4555.6,4555.1,0.00192182]
[1759850904033,0.9871,4555.6,4555.1,0.00192182]
[1759850904232,8.8848021,4555.6,4555.1,0.00192182]
[1759850904436,0.0654,4555.5,4555.1,0.00192182]
[1759850904635,0.46027,4555.2,4555.1,0.00192182]
[1759850905031,0.39495,4554.3,4554.2,1.7004]
[1759850906038,0.39739634,4554.3,4554.2,1.7029699]
[1759850906236,0.39739634,4554.3,4554.2,2.56590335]
[1759850909631,0.46079634,4554.3,4554.2,0.0025699]
[1759850909833,0.0634,4553.5,4553.1,1.7004]
[1759850910036,0.39504,4553.2,4553.1,1.7004]
[1759850910344,0.39506,4553.0,4552.9,0.02196426]
[1759850910736,0.39506,4553.0,4552.9,0.02392991]
[1759850911132,0.0634,4553.5,4552.9,0.02392991]
[1759850911133,0.39506,4553.1,4553.0,1.7004]
[1759850911338,0.39506,4553.1,4553.0,2.3801]
[1759850911948,0.39504,4553.3,4553.1,1.7004]
[1759850912447,0.39504,4553.3,4553.0,0.6797]
[1759850912741,0.00244634,4554.3,4553.1,1.6229]
[1759850913141,0.00244634,4554.3,4553.0,0.6797]
[1759850913142,0.39501,4553.6,4553.5,0.6406]
[1759850913334,0.395,4553.8,4553.5,0.6406]
[1759850913740,0.39498,4554.0,4553.6,1.6229]
[1759850913943,0.395,4553.8,4553.6,1.6229]
[1759850914246,0.00244634,4554.3,4553.6,1.6229]
[1759850914448,0.395,4553.8,4553.6,1.6229]
[1759850914641,0.39505,4553.1,4553.0,0.6797]
[1759850915247,0.39505,4553.1,4553.0,2.3026]
[1759850915845,0.39505,4553.1,4552.9,0.9213765]
[1759850916344,0.39505,4553.1,4552.9,2.5442765]
[1759850916845,0.39505,4553.1,4552.9,0.9213765]
[1759850917142,0.39505,4553.1,4553.0,1.6229]
[1759850917343,0.39505,4553.1,4552.9,0.9213765]
[1759850917843,0.0275,4553.7,4553.0,1.6229]
[1759850918047,0.39505,4553.1,4553.0,2.2635]
[1759850919141,0.0163,4553.0,4552.9,9.91e-06]
[1759850919538,2.87824807,4553.0,4552.9,9.91e-06]
[1759850920140,7.87824807,4553.0,4552.9,9.91e-06]
[1759850920350,7.87824807,4553.0,4551.0,2.1669]
[1759850920351,0.39523,4551.1,4551.0,2.1669]
[1759850920645,0.39523,4551.1,4551.0,3.0384699]
[1759850921244,0.39782314,4551.1,4551.0,3.04119416]
[1759850921438,0.00259314,4551.1,4551.0,3.04119416]
[1759850923144,0.98781,4552.3,4551.1,1.5208]
[1759850923350,0.39521,4551.3,4551.1,1.5208]
[1759850923544,0.39523,4551.1,4551.0,3.04119416]
[1759850924150,0.00197837,4551.1,4551.0,3.04119416]
[1759850924551,0.00197837,4551.1,4551.0,0.87429416]
[1759850925146,0.00197837,4551.1,4551.0,3.04119416]
[1759850925641,0.39720837,4551.1,4551.0,3.04119416]
[1759850925840,0.39720837,4551.1,4551.0,2.39509416]
[1759850926245,0.39720837,4551.1,4551.0,3.04119416]
[1759850927351,0.00197837,4551.1,4551.0,3.04119416]
[1759850928147,0.39519,4551.5,4551.0,3.04119416]
[1759850928342,0.046,4551.9,4551.1,1.5208]
[1759850928540,0.98784,4552.2,4551.1,1.5208]
[1759850928746,0.223,4551.9,4551.1,1.5208]
[1759850928944,0.3952,4551.5,4551.1,1.5208]
[1759850929147,0.00272595,4551.5,4551.1,1.5208]
[1759850929348,0.3952,4551.4,4551.1,1.5208]
[1759850929548,0.00272595,4551.5,4551.1,1.5208]
[1759850929748,0.39522,4551.2,4551.0,1.52039416]
[1759850929944,0.2393,4551.1,4551.0,0.00272426]
[1759850930148,3.11958443,4551.1,4551.0,0.00272426]
[1759850931356,3.10328443,4551.1,4551.0,0.00272426]
[1759850931558,3.11958443,4551.1,4551.0,0.00272426]
[1759850933251,8.11958443,4551.1,4551.0,2.426e-05]
[1759850933454,0.39531,4550.1,4549.9,1.5208]
[1759850933756,0.39533,4549.9,4549.6,1.5208]
[1759850933956,0.61831,4550.2,4550.0,0.6461]
[1759850934159,0.61831,4550.2,4550.1,1.5208]
[1759850934351,0.0135,4550.9,4550.1,1.52323294]
[1759850934550,0.3953,4550.3,4550.2,1.5208]
[1759850934957,0.39529,4550.4,4550.2,1.5208]
[1759850935151,0.39529,4550.4,4550.1,0.00243294]
[1759850935356,0.3953,4550.3,4550.2,1.5208]
[1759850935550,0.0135,4551.0,4550.2,1.5208]
[1759850935755,0.39529,4550.4,4550.1,0.00243294]
[1759850935950,0.223,4550.9,4550.5,0.6461]
[1759850936157,0.39527,4550.6,4550.5,2.1669]
[1759850936451,0.98793,4551.8,4550.6,1.5208]
[1759850936658,0.39522,4551.2,4551.0,0.6461]
[1759850936851,0.39521,4551.3,4551.1,1.5208]
[1759850937050,0.00272595,4551.5,4551.1,1.5208]
[1759850937254,0.39522,4551.2,4551.1,1.5208]
[1759850937757,0.00272595,4551.5,4551.0,0.6461]
[1759850937949,0.98773,4552.7,4551.1,1.5208]
[1759850938148,1.73760175,4553.9,4552.5,2.1669]
[1759850938453,0.39501,4553.6,4552.6,1.5208]
[1759850938658,1.73760175,4553.9,4553.6,1.5208]
[1759850938846,0.98722,4555.1,4553.6,1.5208]
[1759850939050,0.39497,4554.1,4554.0,2.1669]
[1759850939247,0.39494,4554.5,4554.0,2.1669]
[1759850939455,0.00259798,4555.1,4555.0,0.6461]
[1759850939655,0.00259798,4555.1,4555.0,2.1669]
[1759850940150,0.39747798,4555.1,4555.0,1.5208]
[1759850940350,0.39747798,4555.1,4554.0,1.53528188]
[1759850940351,0.39496,4554.2,4554.0,1.53528188]
[1759850940556,0.39496,4554.2,4554.0,0.88918188]
[1759850940754,0.39499,4553.8,4553.7,1.5208]
[1759850941256,0.39499,4553.8,4553.6,0.00172287]
[1759850941559,0.39499,4553.8,4553.6,1.52252287]
[1759850941759,0.39499,4553.8,4553.6,0.90171627]
[1759850941958,0.39499,4553.8,4553.6,0.00172287]
[1759850941959,0.61799,4553.8,4553.6,0.00172287]
[1759850942357,9.87587,4553.4,4551.1,1.5208]
[1759850942661,0.0517,4552.2,4550.7,1.621]
[1759850942862,0.98776,4552.6,4551.6,1.621]
[1759850943063,1.97489,4554.1,4551.6,1.621]
[1759850943262,0.3951,4552.7,4552.6,1.621]
[1759850943457,0.223,4553.1,4552.6,0.00230564]
[1759850943656,0.39508,4552.8,4552.6,0.00230564]
[1759850944762,2.72748773,4553.0,4552.6,0.00230564]
[1759850944964,0.39508,4552.8,4552.7,1.621]
[1759850945962,0.98745,4554.0,4552.7,1.621]
[1759850946264,0.223,4554.6,4552.7,1.621]
[1759850946464,0.39496,4554.2,4553.0,0.39505]
[1759850946757,0.223,4554.6,4553.3,1.621]
[1759850946962,0.39498,4554.0,4553.6,1.621]
[1759850947162,0.39498,4554.0,4553.5,0.6094]
[1759850947359,0.39498,4554.0,4553.6,1.621]
[1759850947559,0.98739,4554.3,4553.6,1.621]
[1759850947965,0.395,4553.7,4553.6,1.621]
[1759850949062,0.39497,4554.1,4554.0,0.6094]
[1759850949464,0.39497,4554.1,4554.0,2.2304]
[1759850949867,0.39497,4554.1,4554.0,3.11106171]
[1759850950763,0.39747798,4555.1,4555.0,2.2304]
[1759850950963,0.00259798,4555.1,4555.0,2.2304]
[1759850951567,0.39495,4554.3,4554.2,1.621]
[1759850952564,0.39497,4554.1,4554.0,1.49006171]
[1759850952769,0.39497,4554.1,4554.0,3.11106171]
[1759850954465,0.39497,4554.1,4554.0,2.50166171]
[1759850955470,0.39504,4553.3,4553.0,0.6094]
[1759850955671,0.39505,4553.2,4553.1,1.621]
[1759850956362,0.223,4553.8,4553.1,1.621]
[1759850956664,0.39499,4553.9,4553.5,0.6094]
[1759850956868,0.98736,4554.4,4553.6,1.621]
[1759850957069,0.39499,4553.9,4553.6,1.621]
[1759850957671,0.39497,4554.1,4554.0,0.6094]
[1759850957873,0.39497,4554.1,4554.0,2.2304]
[1759850960169,0.39497,4554.1,4553.5,0.6094]
[1759850960374,0.39501,4553.6,4553.5,2.2304]
[1759850962472,0.395,4553.7,4553.6,1.621]
[1759850962668,0.39497,4554.1,4553.6,1.621]
[1759850962875,0.39491,4554.8,4554.5,0.6094]
[1759850963074,0.07,4555.6,4554.6,1.621]
[1759850963281,0.39485,4555.5,4554.6,1.621]
[1759850963579,0.3949,4554.9,4554.6,1.621]
[1759850963774,0.39687007,4554.9,4554.6,1.621]
[1759850964171,0.00197007,4554.9,4554.6,1.621]
[1759850964985,0.39492,4554.7,4554.6,1.621]
[1759850966281,0.98732,4554.6,4554.1,1.621]
[1759850966485,0.39496,4554.2,4554.0,0.6094]
[1759850966670,0.98738,4554.3,4553.6,0.223]
[1759850966871,0.395,4553.8,4553.7,1.621]
[1759850968384,0.5923,4554.7,4553.7,1.621]
[1759850968585,0.39492,4554.6,4554.5,0.6094]
[1759850968781,0.39492,4554.6,4554.5,2.2304]
[1759850969882,0.00197007,4554.9,4554.5,0.6094]
[1759850970085,0.39492,4554.7,4554.6,1.621]
[1759850970482,0.39497,4554.1,4554.0,2.2304]
[1759850970783,1.97408,4555.9,4554.1,1.621]
[1759850970978,0.98711,4555.6,4554.4,0.39494]
[1759850971180,3.08628633,4555.8,4555.0,0.6094]
[1759850971376,0.98708,4555.7,4555.1,1.621]
[1759850971576,0.39487,4555.3,4555.1,1.621]
[1759850971785,0.39488,4555.1,4555.0,0.6094]
[1759850972386,0.39488,4555.1,4555.0,2.2304]
[1759850973481,0.39487,4555.2,4555.1,1.558]
[1759850974090,0.98703,4556.0,4555.1,1.558]
[1759850974279,0.39488,4555.1,4555.0,2.1674]
[1759850974786,0.39492,4554.6,4554.5,2.1674]
[1759850975089,0.39707812,4554.6,4554.5,2.1674]
[1759850977290,0.39504,4553.3,4553.1,1.558]
[1759850977587,0.39505,4553.1,4553.0,3.0556961]
[1759850977889,0.39505,4553.1,4553.0,0.8796961]
[1759850978088,0.39505,4553.1,4553.0,1.558]
[1759850978884,0.39505,4553.1,4553.0,2.1994]
[1759850979485,0.39505,4553.1,4553.0,3.06468557]
[1759850982085,0.98745,4554.0,4553.1,1.583]
[1759850982390,0.98747,4553.9,4553.1,1.583]
[1759850982592,0.39505,4553.2,4553.1,1.583]
[1759850983088,0.39504,4553.3,4553.1,1.583]
[1759850984290,0.39505,4553.1,4553.0,3.08968557]
[1759850987288,0.39505,4553.1,4553.0,0.86528557]
[1759850987488,0.39505,4553.1,4553.0,1.583]
[1759850987694,0.39505,4553.1,4553.0,2.2244]
[1759850988093,0.39505,4553.1,4553.0,3.10102544]
[1759850988294,0.98747,4553.9,4553.1,1.583]
[1759850988488,0.39504,4553.2,4553.1,1.583]
[1759850990493,1.97402,4556.1,4553.3,1.583]
[1759850990792,0.98714,4555.5,4554.6,1.583]
[1759850990984,0.98719,4555.2,4554.6,1.583]
[1759850991183,0.39491,4554.7,4554.6,1.583]
[1759850991393,1.21014,4555.4,4554.6,1.583]
[1759850991594,1.21203244,4555.4,4554.6,1.583]
[1759850991894,0.39492,4554.6,4554.5,2.2244]
[1759850993692,3.75600282,4558.0,4554.5,5.6414]
[1759850993996,0.39487,4555.2,4555.0,0.6414]
[1759850994295,0.39487,4555.2,4555.1,1.583]
[1759850994796,0.39695959,4555.2,4555.1,1.583]
[1759850997789,0.39491,4554.7,4554.6,1.806]
[1759850997991,0.00208959,4555.2,4554.6,1.806]
[1759850998187,11.84341,4556.4,4554.6,1.806]
[1759850998188,0.98699,4556.1,4555.6,1.583]
[1759850998393,0.39483,4555.7,4555.6,1.583]
[1759850999194,0.39647433,4555.7,4555.6,1.583]
[1759850999698,0.00164433,4555.7,4555.6,1.583]
[1759851000398,0.39487,4555.2,4555.1,1.583]
[1759851000597,0.39492,4554.6,4554.5,2.2244]
[1759851001505,0.39497,4554.1,4554.0,2.2244]
[1759851002393,0.39496,4554.2,4554.1,1.6257]
[1759851002602,0.39501,4553.6,4553.5,2.2671]
[1759851002902,0.39505,4553.1,4553.0,3.14372544]
[1759851003900,0.39505,4553.1,4553.0,0.87662544]
[1759851004091,0.39504,4553.3,4553.0,2.2293]
[1759851004297,0.39505,4553.2,4553.1,1.6257]
[1759851004603,0.39505,4553.2,4553.0,0.89200104]
[1759851004798,0.98753,4553.6,4552.7,1.6257]
[1759851004996,0.39508,4552.8,4552.7,1.6257]
[1759851005197,2.90993987,4553.6,4552.7,1.6257]
[1759851005505,0.98755,4553.5,4552.7,1.6257]
[1759851005699,0.39506,4553.1,4552.7,2.5122572]
[1759851005900,2.82363831,4553.5,4553.0,0.6036]
[1759851006199,0.39502,4553.6,4553.5,0.6036]
[1759851006405,0.395,4553.8,4553.6,1.6257]
[1759851006700,9.86829,4556.9,4554.1,1.6257]
[1759851006701,0.39496,4554.2,4554.1,1.6257]
[1759851006893,0.395,4553.7,4553.5,0.6036]
[1759851007100,0.395,4553.7,4553.6,1.6257]
[1759851008004,1.97421,4555.6,4553.6,1.6257]
[1759851008005,0.395,4553.8,4553.6,1.6257]
[1759851008401,0.39501,4553.6,4553.5,2.2293]
[1759851008597,0.39508,4552.8,4552.7,0.8865572]
[1759851008801,0.39508,4552.8,4552.7,1.6257]
[1759851009297,1.97463,4554.7,4552.8,1.6257]
[1759851009497,0.39502,4553.5,4552.8,1.6257]
[1759851009807,0.98741,4554.2,4552.7,0.8668804]
[1759851009808,0.39504,4553.3,4553.1,1.6257]
[1759851010000,0.39505,4553.2,4553.1,1.6257]
[1759851010300,2.85710069,4553.7,4553.1,1.6257]
[1759851010506,0.39501,4553.6,4553.5,0.6036]
[1759851010710,2.67279467,4553.8,4553.5,2.2293]